bitfinex/quotes_ETHUSD_20250726
["timestamp","ask_amount","ask_price","bid_price","bid_amount"]
[1753530781474,0.8077,3743.9,3743.7,2.67111889]
[1753530781670,0.8077,3743.9,3743.8,2.67108285]
[1753530781831,0.8077,3743.9,3743.8,3.16508285]
[1753530782168,0.1336,3744.0,3743.8,0.494]
[1753530782367,0.03338764,3743.9,3743.8,0.494]
[1753530783042,0.03338764,3743.9,3743.8,0.9242]
[1753530783253,0.1336,3744.0,3743.8,3.59528285]
[1753530783479,0.1336,3744.0,3743.8,3.10128285]
[1753530783661,0.1336,3744.0,3743.9,0.494]
[1753530783859,0.1336,3744.0,3743.9,0.9242]
[1753530784879,0.7904,3743.9,3743.6,0.001]
[1753530785066,0.1336,3743.7,3743.6,0.001]
[1753530785683,0.1336,3743.7,3743.6,0.9252]
[1753530786995,0.1336,3743.7,3743.6,3.59642555]
[1753530789468,0.0090643,3744.2,3743.6,0.9252]
[1753530789672,0.1336,3743.9,3743.8,2.67108285]
[1753530789888,0.1336,3743.9,3743.8,3.59528285]
[1753530791809,0.0090643,3744.2,3744.0,2.67087185]
[1753530792309,0.1336,3744.1,3744.0,2.67087185]
[1753530792694,0.1336,3744.1,3743.9,2.67099399]
[1753530793015,0.1336,3744.1,3744.0,0.9242]
[1753530793609,0.1336,3744.1,3744.0,3.59514017]
[1753530797783,0.1426643,3744.2,3744.1,2.67086883]
[1753530798194,0.9744643,3744.2,3743.7,0.1336]
[1753530798412,0.9744643,3744.2,3743.8,0.494]
[1753530798413,0.1336,3744.0,3743.8,0.494]
[1753530798641,0.1336,3744.0,3743.8,3.16502618]
[1753530799425,0.1336,3744.0,3743.9,2.67101151]
[1753530799639,0.1336,3744.0,3743.8,3.16507528]
[1753530799932,0.1336,3744.0,3743.9,2.67101151]
[1753530800701,0.1336,3744.0,3743.9,3.16501151]
[1753530801099,0.1336,3744.0,3743.9,0.494]
[1753530801510,0.1336,3744.0,3743.8,2.67108285]
[1753530801714,0.8408643,3744.2,3743.8,3.16508285]
[1753530801916,0.1336,3743.9,3743.8,3.11498285]
[1753530802624,0.1336,3743.9,3743.8,3.60898285]
[1753530803044,0.1336,3743.9,3743.8,0.9379]
[1753530803605,0.1336,3743.9,3743.7,2.6711375]
[1753530803800,0.1336,3743.9,3743.7,3.1651375]
[1753530804006,0.1336,3743.9,3743.8,0.494]
[1753530804706,0.1336,3743.9,3743.8,3.16508285]
[1753530805210,0.9458,3743.9,3743.7,2.67113534]
[1753530805439,0.9458,3743.9,3743.8,0.494]
[1753530805901,0.9458,3743.9,3743.7,3.11503534]
[1753530806103,0.9458,3743.9,3743.7,3.60903534]
[1753530806734,0.9458,3743.9,3743.8,2.67108285]
[1753530806941,0.9458,3743.9,3743.8,3.16508285]
[1753530807147,0.9458,3743.9,3743.8,3.60898285]
[1753530807636,0.1336,3743.9,3743.8,3.60898285]
[1753530808559,0.0090643,3744.2,3744.0,2.67087246]
[1753530808913,0.1336,3744.1,3744.0,2.67087246]
[1753530809642,0.1336,3744.1,3744.0,3.60877246]
[1753530814255,0.1336,3744.1,3744.0,6.14177246]
[1753530817055,0.002,3744.3,3744.2,2.6707975]
[1753530817245,0.1356,3744.3,3744.2,2.6707975]
[1753530817644,0.1356,3744.3,3744.2,3.6086975]
[1753530820972,0.1356,3744.3,3744.2,6.1396975]
[1753530830087,0.002,3744.3,3744.2,6.1396975]
[1753530837465,0.00906486,3744.9,3744.8,2.67036957]
[1753530837701,0.1336,3744.9,3744.8,5.19736957]
[1753530837996,0.002,3745.1,3745.0,2.67022696]
[1753530838300,0.002,3745.1,3745.0,5.19722696]
[1753530838593,0.1356,3745.1,3745.0,5.19722696]
[1753530841507,0.1356,3745.1,3745.0,7.67248661]
[1753530842903,0.002,3745.1,3745.0,7.80608661]
[1753530849748,0.1356,3745.1,3745.0,2.67022696]
[1753530849954,0.1356,3745.1,3745.0,5.19322696]
[1753530851347,0.1356,3745.1,3745.0,2.67022696]
[1753530851553,0.1356,3745.1,3745.0,5.19322696]
[1753530852038,0.1356,3745.1,3745.0,5.66662696]
[1753530852242,0.1356,3745.1,3745.0,6.12672696]
[1753530852916,0.002,3745.1,3745.0,7.14003661]
[1753530854837,0.002,3745.1,3745.0,7.90613661]
[1753530856458,0.002,3745.8,3745.7,2.66972795]
[1753530856623,0.002,3745.8,3745.7,5.19172795]
[1753530856825,0.002,3745.8,3745.7,5.65182795]
[1753530857064,0.002,3745.8,3745.7,6.12522795]
[1753530858134,0.002,3745.8,3745.7,5.19172795]
[1753530859768,0.0353707,3745.8,3745.2,2.67002687]
[1753530860068,0.7985,3745.7,3745.4,2.66987385]
[1753530860465,0.1336,3745.5,3745.4,2.66987385]
[1753530860965,0.1336,3745.5,3745.4,3.13797385]
[1753530861168,0.1336,3745.5,3745.4,3.58127385]
[1753530861533,0.1336,3745.5,3745.4,3.13797385]
[1753530862753,0.1336,3745.5,3745.4,3.58127385]
[1753530863277,0.1336,3745.5,3745.4,6.10127385]
[1753530863771,0.1336,3745.5,3745.4,5.65797385]
[1753530864978,0.1336,3745.5,3745.4,5.18987385]
[1753530865342,0.1336,3745.5,3745.4,2.52]
[1753530865551,0.1336,3745.5,3745.4,5.18994179]
[1753530865954,0.1336,3745.5,3745.4,2.66994179]
[1753530866151,0.1336,3745.5,3745.4,5.18994179]
[1753530866351,0.1356,3745.5,3745.3,2.519]
[1753530866581,0.1336,3745.4,3744.8,0.1336]
[1753530866739,0.7687,3745.3,3745.1,2.67014067]
[1753530866944,0.7687,3745.3,3745.1,5.18914067]
[1753530867215,0.1336,3745.2,3745.1,5.18914067]
[1753530868781,0.1336,3745.2,3745.1,2.67014067]
[1753530869469,0.1336,3745.2,3745.0,5.18921006]
[1753530869644,0.1336,3745.2,3745.0,5.65731006]
[1753530870788,0.1336,3745.2,3745.0,2.9871]
[1753530871011,0.1336,3745.2,3745.1,3.13825567]
[1753530871486,0.1336,3745.2,3745.1,3.58155567]
[1753530874026,0.1336,3745.2,3745.1,0.9114]
[1753530874180,0.1336,3745.2,3745.0,5.18920478]
[1753530874519,0.1336,3745.2,3745.0,5.65730478]
[1753530874877,0.1336,3745.2,3745.0,6.10060478]
[1753530875912,0.1336,3745.2,3745.0,5.63250478]
[1753530876212,0.1336,3745.2,3745.1,0.4681]
[1753530876999,0.1336,3745.2,3745.1,3.13825567]
[1753530877204,0.1336,3745.2,3745.1,6.09855567]
[1753530882421,0.1336,3745.2,3745.1,3.58155567]
[1753530882723,0.1336,3745.2,3745.1,5.65425567]
[1753530882881,0.1336,3745.2,3745.1,2.67015567]
[1753530883087,0.1336,3745.2,3745.1,5.18615567]
[1753530883688,0.1336,3745.2,3745.1,5.65425567]
[1753530886385,0.1336,3745.2,3745.1,6.09755567]
[1753530888423,0.1336,3745.2,3745.1,6.09855567]
[1753530888621,0.1356,3745.2,3745.1,5.18715567]
[1753530888823,0.1356,3745.2,3745.1,6.12735567]
[1753530899398,0.002,3745.2,3745.1,6.12735567]
[1753530900943,0.002,3745.2,3745.1,7.10271857]
[1753530901839,0.002,3745.2,3745.1,6.12735567]
[1753530907639,0.80237605,3745.2,3745.1,0.001]
[1753530909419,0.769,3745.2,3745.1,0.001]
[1753530909816,0.80237605,3745.2,3745.1,0.001]
[1753530910159,1.16317018,3745.2,3745.1,0.001]
[1753530910632,3.83325455,3745.2,3745.1,0.001]
[1753530912064,4.38325455,3745.2,3745.1,0.001]
[1753530912262,7.38325455,3745.2,3745.1,0.001]
[1753530912472,7.3498785,3745.2,3745.1,0.001]
[1753530913671,9.8588785,3745.2,3745.1,0.001]
[1753530914170,9.3088785,3745.2,3745.1,0.001]
[1753530914480,6.63879413,3745.2,3745.1,0.001]
[1753530914781,9.3088785,3745.2,3745.1,0.001]
[1753530914962,3.36279413,3745.2,3745.1,0.001]
[1753530915274,3.002,3745.2,3745.1,0.9412]
[1753530915641,0.002,3745.2,3745.1,0.9412]
[1753530919066,0.002,3745.2,3745.1,3.61135567]
[1753530920548,0.002,3745.2,3745.1,0.9412]
[1753530920743,0.03537605,3745.2,3745.1,0.9412]
[1753530922964,0.03537605,3745.2,3745.1,0.001]
[1753530923765,0.03537605,3745.2,3745.1,0.9133]
[1753530923964,0.002,3745.2,3745.1,0.9133]
[1753530926582,0.03537605,3745.2,3745.1,0.001]
[1753530926984,2.70546042,3745.2,3745.1,0.001]
[1753530927194,7.60686542,3745.2,3745.1,0.001]
[1753530927484,7.57348937,3745.2,3745.1,0.001]
[1753530927876,10.07948937,3745.2,3745.1,0.001]
[1753530931793,7.409405,3745.2,3745.1,0.001]
[1753530932995,10.07948937,3745.2,3745.1,0.001]
[1753530939695,7.409405,3745.2,3745.1,0.001]
[1753530939917,10.07948937,3745.2,3745.1,0.001]
[1753530951436,10.07948937,3745.2,3745.1,0.4898]
[1753530951882,10.07948937,3745.2,3745.1,0.001]
[1753530952776,10.07948937,3745.2,3745.1,0.4898]
[1753530953220,10.07948937,3745.2,3745.1,0.001]
[1753530954214,10.07948937,3745.2,3745.1,0.4898]
[1753530955032,10.07948937,3745.2,3745.1,0.001]
[1753530960222,10.07948937,3745.2,3745.1,0.4898]
[1753530960927,10.07948937,3745.2,3745.1,0.001]
[1753530962332,10.07948937,3745.2,3745.1,0.4898]
[1753530963336,10.07948937,3745.2,3745.1,0.001]
[1753530966338,40.32671859,3745.2,3745.1,0.001]
[1753530968213,40.33578144,3745.2,3745.1,0.001]
[1753530973873,40.33578144,3745.2,3745.1,0.4898]
[1753530974255,40.33578144,3745.2,3745.1,0.001]
[1753530976143,40.3355994,3745.2,3745.1,0.001]
[1753530976552,10.3355994,3745.2,3745.1,0.001]
[1753530976790,10.3355994,3745.2,3745.1,1e-08]
[1753530976791,40.3355994,3745.2,3745.1,1e-08]
[1753530979101,43.14546143,3745.2,3745.1,1e-08]
[1753530979271,43.29358814,3745.2,3745.1,1e-08]
[1753530979600,43.28452529,3745.2,3745.1,1e-08]
[1753530979797,43.29359059,3745.2,3745.1,1e-08]
[1753530981361,43.2931916,3745.2,3745.1,1e-08]
[1753530981776,57.93272655,3745.2,3745.1,1e-08]
[1753530984603,64.99272655,3745.2,3745.1,1e-08]
[1753530985179,34.04505484,3744.4,3744.3,0.001]
[1753530985380,50.20432152,3744.4,3744.3,0.001]
[1753530985569,50.20432152,3744.4,3744.3,0.4625]
[1753530985769,50.21338682,3744.4,3744.3,0.4625]
[1753530986587,50.41135784,3744.4,3744.3,0.4625]
[1753530986798,3.2211542,3743.7,3743.2,0.001]
[1753530987113,8.7151542,3743.7,3743.4,0.8021]
[1753530987314,38.8487542,3743.7,3743.4,0.8021]
[1753530987476,38.8487542,3743.7,3743.6,0.4486]
[1753530989000,38.8487542,3743.7,3743.6,0.9101]
[1753530990318,39.05384596,3743.7,3743.6,0.9101]
[1753530990514,41.54684596,3743.7,3743.6,0.9101]
[1753530991490,33.1336,3743.7,3743.6,0.9101]
[1753530991689,0.1336,3743.7,3743.6,1.7112]
[1753530991896,2.50206704,3743.7,3743.6,1.7112]
[1753530992206,2.16066704,3743.7,3743.6,4.38242555]
[1753530993190,5.38182124,3743.7,3743.6,0.001]
[1753530993405,39.08689897,3743.7,3743.6,0.9101]
[1753530993640,39.05350955,3743.7,3743.6,0.9101]
[1753530994628,38.24822124,3743.7,3743.6,0.9101]
[1753530994810,36.2211542,3743.7,3743.6,0.9101]
[1753530995015,38.7141542,3743.7,3743.6,0.9101]
[1753530996630,39.4665542,3743.7,3743.6,0.001]
[1753530997208,42.16564596,3743.7,3743.6,0.001]
[1753530997799,45.9025728,3743.7,3743.6,0.001]
[1753530997999,46.8284728,3743.7,3743.6,0.001]
[1753530998435,16.83753996,3743.7,3743.6,0.001]
[1753530998739,47.08361429,3743.7,3743.6,0.001]
[1753530998902,47.0836096,3743.7,3743.6,0.001]
[1753530999306,46.83753996,3743.7,3743.6,0.001]
[1753530999742,47.08357263,3743.7,3743.6,0.001]
[1753531001425,16.15767263,3743.7,3743.6,0.001]
[1753531001632,46.15767263,3743.7,3743.6,0.001]
[1753531001940,12.42074579,3743.7,3743.6,0.001]
[1753531002138,39.72165403,3743.7,3743.6,0.001]
[1753531003543,39.85525403,3743.7,3743.6,0.001]
[1753531006412,40.78115403,3743.7,3743.6,0.001]
[1753531006924,40.31965403,3743.7,3743.6,0.001]
[1753531008239,39.85525403,3743.7,3743.6,0.001]
[1753531008447,42.55434579,3743.7,3743.6,0.001]
[1753531008625,12.55434579,3743.7,3743.6,0.001]
[1753531008828,42.55434579,3743.7,3743.6,0.001]
[1753531009247,42.55434579,3743.7,3743.6,0.4644]
[1753531009447,42.55234579,3743.7,3743.6,0.4644]
[1753531009748,41.79994579,3743.7,3743.6,0.4644]
[1753531010719,41.79993276,3743.7,3743.6,0.4644]
[1753531011057,41.79993276,3743.7,3743.6,0.9003]
[1753531011668,41.7908656,3743.7,3743.6,0.9003]
[1753531012250,39.2998656,3743.7,3743.6,0.9003]
[1753531012447,39.09177384,3743.7,3743.6,0.9003]
[1753531013764,36.60077384,3743.7,3743.6,0.9003]
[1753531013973,39.09177384,3743.7,3743.6,0.9003]
[1753531014176,39.84467384,3743.7,3743.6,0.001]
[1753531014468,42.5437656,3743.7,3743.6,0.001]
[1753531014675,42.5427656,3743.7,3743.6,0.001]
[1753531015077,40.0527656,3743.7,3743.6,0.4644]
[1753531015232,36.60077384,3743.7,3743.6,0.9003]
[1753531015432,38.8447542,3743.7,3743.6,0.9003]
[1753531016570,6.3547542,3743.7,3743.6,0.9003]
[1753531016733,8.8447542,3743.7,3743.6,0.9003]
[1753531017068,8.8467542,3743.7,3743.6,0.9003]
[1753531017932,6.3567542,3743.7,3743.6,0.9003]
[1753531018229,8.8467542,3743.7,3743.6,0.9003]
[1753531018851,6.3567542,3743.7,3743.6,0.9003]
[1753531019051,5.8467542,3743.7,3743.6,0.9003]
[1753531022070,5.8457542,3743.7,3743.6,0.9003]
[1753531022767,3.3567542,3743.7,3743.6,0.9003]
[1753531022935,5.8457542,3743.7,3743.6,0.9003]
[1753531023134,5.8457542,3743.7,3743.6,1.6956]
[1753531023847,3.1746,3743.7,3743.6,1.6956]
[1753531024271,5.8457542,3743.7,3743.6,1.6956]
[1753531024563,3.1746,3743.7,3743.6,1.6956]
[1753531025469,5.8457542,3743.7,3743.6,1.6956]
[1753531028167,3.1746,3743.7,3743.6,1.6956]
[1753531028372,3.6856,3743.7,3743.6,1.6956]
[1753531028542,6.1736,3743.7,3743.6,1.6956]
[1753531028947,3.6856,3743.7,3743.6,1.6956]
[1753531029153,8.8447542,3743.7,3743.6,1.6956]
[1753531031353,9.99633118,3743.7,3743.6,0.001]
[1753531031758,40.44213118,3743.7,3743.6,0.001]
[1753531031959,41.15014363,3743.7,3743.6,0.001]
[1753531032300,41.91494363,3743.7,3743.6,0.001]
[1753531032599,41.92401091,3743.7,3743.6,0.001]
[1753531035057,40.25091091,3743.7,3743.6,0.001]
[1753531035388,39.09026665,3743.7,3743.6,0.4644]
[1753531035689,9.09026665,3743.7,3743.6,0.4644]
[1753531035898,39.09026665,3743.7,3743.6,0.4644]
[1753531036060,38.8437542,3743.7,3743.6,0.4644]
[1753531037512,38.8437542,3743.7,3743.6,0.001]
[1753531038018,8.8437542,3743.7,3743.6,0.001]
[1753531038316,39.09034688,3743.7,3743.6,0.4572]
[1753531039479,39.09042422,3743.7,3743.6,0.4572]
[1753531041632,39.09049916,3743.7,3743.6,0.4572]
[1753531042115,39.09049916,3743.7,3743.6,0.001]
[1753531042292,41.78959092,3743.7,3743.6,0.001]
[1753531043715,39.30259092,3743.7,3743.6,0.001]
[1753531043905,36.41834496,3743.7,3743.6,0.9054]
[1753531047419,6.41834496,3743.7,3743.6,0.9054]
[1753531047731,36.41834496,3743.7,3743.6,0.9054]
[1753531047923,36.1716,3743.7,3743.6,0.9054]
[1753531048422,3.6856,3743.7,3743.6,0.4572]
[1753531048602,36.1706,3743.7,3743.6,0.9054]
[1753531049341,33.6856,3743.7,3743.6,0.9054]
[1753531049541,36.1706,3743.7,3743.6,0.9054]
[1753531050604,36.1706,3743.7,3743.6,0.4572]
[1753531051007,38.8417542,3743.7,3743.6,0.4572]
[1753531051228,36.1706,3743.7,3743.6,0.4572]
[1753531052340,6.1706,3743.7,3743.6,0.4572]
[1753531052541,36.1706,3743.7,3743.6,0.4572]
[1753531056152,36.1706,3743.7,3743.6,0.9054]
[1753531056558,36.1696,3743.7,3743.6,0.9054]
[1753531058526,36.1696,3743.7,3743.6,0.4572]
[1753531059059,38.8407542,3743.7,3743.6,0.4572]
[1753531060761,36.1696,3743.7,3743.6,0.4572]
[1753531062780,38.8407542,3743.7,3743.6,0.4572]
[1753531062975,8.8407542,3743.7,3743.6,0.4572]
[1753531063276,38.8407542,3743.7,3743.6,0.4572]
[1753531063592,38.8407542,3743.7,3743.6,0.001]
[1753531063800,36.1696,3743.7,3743.6,0.4572]
[1753531064571,33.6856,3743.7,3743.6,0.4572]
[1753531064742,36.1686,3743.7,3743.6,0.4572]
[1753531067801,36.1686,3743.7,3743.6,0.9054]
[1753531067961,36.1676,3743.7,3743.6,0.9054]
[1753531068355,36.1676,3743.7,3743.6,0.4572]
[1753531068553,38.8387542,3743.7,3743.6,0.4572]
[1753531068872,36.1676,3743.7,3743.6,0.4572]
[1753531069392,38.8387542,3743.7,3743.6,0.4572]
[1753531069592,33.6856,3743.7,3743.6,0.4572]
[1753531069890,36.1676,3743.7,3743.6,0.4572]
[1753531070343,38.8387542,3743.7,3743.6,0.4572]
[1753531070711,36.1676,3743.7,3743.6,0.4572]
[1753531074614,38.8387542,3743.7,3743.6,0.4572]
[1753531074792,38.7051542,3743.7,3743.6,0.4572]
[1753531074992,38.7051542,3743.7,3743.6,0.001]
[1753531076718,42.29934596,3743.7,3743.6,0.001]
[1753531077014,43.31467282,3743.7,3743.6,0.001]
[1753531077678,43.46330379,3743.7,3743.6,0.001]
[1753531078317,43.46330379,3743.7,3743.5,0.001]
[1753531078318,36.98942555,3743.6,3743.5,0.001]
[1753531078479,40.30485283,3743.6,3743.5,0.001]
[1753531078679,41.20902036,3743.6,3743.5,0.001]
[1753531080021,11.20902036,3743.6,3743.5,0.001]
[1753531080313,44.9459472,3743.6,3743.5,0.001]
[1753531081288,37.04273963,3743.3,3743.2,0.001]
[1753531081639,39.76986649,3743.3,3743.2,0.001]
[1753531081795,40.67403402,3743.3,3743.2,0.001]
[1753531082127,10.67403402,3743.3,3743.2,0.001]
[1753531082296,40.67403402,3743.3,3743.2,0.001]
[1753531082506,41.26233444,3743.3,3743.2,0.001]
[1753531083391,11.26233444,3743.3,3743.2,0.001]
[1753531083627,0.55,3743.1,3742.7,0.001]
[1753531083812,3.22193929,3742.6,3742.5,0.001]
[1753531083986,46.35285715,3742.6,3742.5,0.001]
[1753531084181,46.31945791,3742.6,3742.5,0.001]
[1753531084398,43.83945791,3742.6,3742.5,0.001]
[1753531084722,42.00193929,3742.6,3742.5,0.9151]
[1753531084928,42.13553929,3742.6,3742.5,0.9151]
[1753531085096,42.68553929,3742.6,3742.5,0.9151]
[1753531086228,40.0136,3742.6,3742.5,0.9151]
[1753531086742,0.1336,3742.6,3742.5,0.9151]
[1753531087037,0.1336,3742.6,3742.5,4.51583068]
[1753531087402,2.6136,3742.6,3742.5,4.51583068]
[1753531090139,2.6136,3742.6,3742.5,4.46583068]
[1753531096828,2.6136,3742.6,3742.5,1.6262]
[1753531100559,2.6136,3742.6,3742.5,4.29821068]
[1753531102058,2.6136,3742.6,3742.5,4.29921068]
[1753531103565,2.6136,3742.6,3742.5,1.6272]
[1753531103966,2.6136,3742.6,3742.5,4.29921068]
[1753531109241,2.6136,3742.6,3742.5,4.99634678]
[1753531112471,0.002,3743.4,3743.2,2.671511]
[1753531112772,0.002,3743.4,3743.3,4.45343963]
[1753531115566,0.002,3743.4,3743.3,4.48015402]
[1753531115760,0.002,3743.4,3743.3,4.45343963]
[1753531115959,0.002,3743.4,3743.3,5.53962738]
[1753531132409,0.002,3743.4,3743.3,5.08132738]
[1753531137039,0.002,3743.4,3743.3,3.49913963]
[1753531137238,0.002,3743.4,3743.3,2.67143963]
[1753531137739,0.9644,3743.4,3743.3,2.67143963]
[1753531137952,1.098,3743.4,3743.3,2.67143963]
[1753531138644,0.6062,3743.4,3743.3,2.67143963]
[1753531140240,0.1356,3743.4,3743.3,2.67143963]
[1753531142054,0.6062,3743.4,3743.3,2.67143963]
[1753531142268,1.098,3743.4,3743.3,2.67143963]
[1753531143046,0.6062,3743.4,3743.3,2.67143963]
[1753531144057,0.1356,3743.4,3743.3,2.67143963]
[1753531144455,0.1356,3743.4,3743.3,3.15763963]
[1753531144660,0.1356,3743.4,3743.3,2.67143963]
[1753531144826,0.002,3743.4,3743.3,4.08535469]
[1753531145027,0.002,3743.4,3743.3,3.15763963]
[1753531145357,0.002,3743.4,3743.3,2.67143963]
[1753531145856,1.098,3743.4,3742.7,1.3172]
[1753531146062,1.7933,3743.3,3742.5,0.001]
[1753531146245,0.8309,3743.1,3742.9,2.67167377]
[1753531146447,0.9624,3743.0,3742.5,0.001]
[1753531146764,0.1336,3742.6,3742.5,2.67301068]
[1753531147134,1.096,3742.6,3742.5,2.67301068]
[1753531148054,0.1336,3742.6,3742.5,2.67301068]
[1753531156733,0.1336,3742.6,3742.5,3.15921068]
[1753531158242,0.1336,3742.6,3742.5,2.67301068]
[1753531160869,0.1336,3742.6,3742.5,3.15601068]
[1753531162245,2.469,3743.2,3742.5,4.21252612]
[1753531162467,0.1336,3742.7,3742.6,3.62863929]
[1753531170548,0.1336,3742.7,3742.6,2.67193929]
[1753531172043,1.0821,3742.7,3742.6,2.67193929]
[1753531174797,0.6015,3742.7,3742.6,2.67193929]
[1753531175592,0.1336,3742.7,3742.6,2.67193929]
[1753531175794,0.1336,3742.7,3742.6,3.15493929]
[1753531176091,0.1336,3742.7,3742.6,3.62863929]
[1753531180613,0.9459,3742.7,3742.5,0.001]
[1753531180775,0.9459,3742.7,3742.6,2.67193929]
[1753531181197,0.1336,3742.7,3742.6,2.67193929]
[1753531183516,0.1336,3742.7,3742.6,3.15493929]
[1753531183888,0.1336,3742.7,3742.6,2.67193929]
[1753531185212,0.1336,3742.7,3742.6,3.15493929]
[1753531185896,0.1336,3742.7,3742.6,3.62863929]
[1753531186097,0.1336,3742.7,3742.6,3.15493929]
[1753531186603,0.1336,3742.7,3742.6,3.48213929]
[1753531186833,0.002,3743.4,3743.3,2.67143963]
[1753531187209,0.002,3743.4,3743.3,3.15443963]
[1753531187406,0.002,3743.4,3743.3,2.67143963]
[1753531188949,0.002,3743.4,3743.3,3.15583963]
[1753531192042,0.002,3743.4,3743.3,3.58373963]
[1753531192244,0.002,3743.4,3743.3,4.58295947]
[1753531200118,0.002,3743.4,3743.3,4.15505947]
[1753531200544,0.002,3743.4,3743.3,4.58295947]
[1753531201750,0.002,3743.4,3743.3,4.15505947]
[1753531202116,0.002,3743.4,3743.3,4.58295947]
[1753531203457,0.002,3743.4,3743.3,4.15505947]
[1753531203636,0.002,3743.7,3743.5,2.67129691]
[1753531203837,0.1356,3743.7,3743.6,0.75480933]
[1753531204154,0.002,3743.7,3743.6,5.11013488]
[1753531204358,0.002,3743.7,3743.6,7.25212263]
[1753531204560,0.002,3743.7,3743.6,7.68002263]
[1753531205665,0.1356,3744.1,3744.0,2.67094017]
[1753531205666,0.002,3744.1,3744.0,2.67094017]
[1753531205830,1e-08,3744.1,3744.0,7.17966701]
[1753531206021,1e-08,3744.1,3744.0,8.22556701]
[1753531206440,1e-08,3744.1,3744.0,10.68856701]
[1753531206836,1e-08,3744.2,3744.1,2.67086883]
[1753531207055,1e-08,3744.2,3744.1,5.2129243]
[1753531207260,1e-08,3744.2,3744.1,4.75831562]
[1753531207452,1e-08,3744.2,3744.1,5.18621562]
[1753531207966,1e-08,3744.2,3744.1,6.73691562]
[1753531208176,1e-08,3744.2,3744.1,4.27391562]
[1753531208776,1e-08,3744.2,3744.1,4.75831562]
[1753531209389,1e-08,3744.2,3744.1,8.4307243]
[1753531209685,1e-08,3744.2,3744.1,8.53761562]
[1753531210780,0.002,3744.5,3744.4,2.67065484]
[1753531210781,1e-08,3744.5,3744.4,2.67065484]
[1753531211089,1e-08,3744.5,3744.4,8.34131662]
[1753531211489,1e-08,3744.5,3744.4,9.25361662]
[1753531211648,1e-08,3744.5,3744.4,4.33398978]
[1753531211841,1e-08,3744.5,3744.4,3.71598978]
[1753531212549,0.13360001,3744.5,3744.4,3.71598978]
[1753531212978,1.04000001,3744.5,3744.4,2.67065484]
[1753531215487,0.58520001,3744.5,3744.4,2.67065484]
[1753531218486,0.13360001,3744.5,3744.4,2.67065484]
[1753531220589,0.7844,3744.4,3744.3,2.67069403]
[1753531220953,1.8312,3744.4,3744.3,2.67069403]
[1753531222482,0.918,3744.4,3744.3,2.67069403]
[1753531222653,0.1336,3744.4,3744.3,3.15909403]
[1753531223269,0.1336,3744.4,3744.3,2.67069403]
[1753531223848,0.5647,3744.4,3744.3,2.67069403]
[1753531224182,1.7984,3744.4,3744.3,2.67069403]
[1753531224400,1.97844,3744.4,3744.1,2.67081282]
[1753531224611,0.1336,3744.2,3744.1,2.67081282]
[1753531224972,0.1336,3744.2,3744.1,3.15921282]
[1753531225168,0.1336,3744.2,3744.1,3.58811282]
[1753531225600,0.1336,3744.2,3744.1,2.67081282]
[1753531226210,0.1336,3744.2,3744.1,3.15921282]
[1753531228411,0.1336,3744.2,3744.1,3.58811282]
[1753531230994,0.1336,3744.2,3744.1,3.15921282]
[1753531232012,1e-08,3744.5,3744.4,2.67065484]
[1753531232214,0.13360001,3744.5,3744.4,2.67065484]
[1753531232416,0.13360001,3744.5,3744.4,3.58795484]
[1753531233803,0.96080001,3744.5,3744.4,2.67065484]
[1753531234100,0.13360001,3744.5,3744.4,2.67065484]
[1753531236206,0.13360001,3744.5,3744.4,4.43801609]
[1753531237717,0.13360001,3744.5,3744.4,3.58795484]
[1753531237923,0.13360001,3744.5,3744.4,3.15905484]
[1753531238717,1e-08,3744.5,3744.4,4.40005484]
[1753531239544,1e-08,3744.5,3744.4,4.53365484]
[1753531240436,1e-08,3744.5,3744.4,9.16747532]
[1753531240638,1e-08,3744.5,3744.4,9.14076878]
[1753531242736,1e-08,3744.5,3744.4,11.59976878]
[1753531252073,1e-08,3744.5,3744.4,9.14076878]
[1753531252369,1e-08,3744.5,3744.4,11.59776878]
[1753531252533,1e-08,3744.5,3744.4,11.59876878]
[1753531255460,1e-08,3744.5,3744.4,11.23116586]
[1753531259446,1e-08,3744.5,3744.4,10.31386586]
[1753531259647,1e-08,3744.5,3744.4,10.79206586]
[1753531260582,1e-08,3744.5,3744.4,9.18495192]
[1753531261547,1e-08,3744.5,3744.4,6.72795192]
[1753531261747,1e-08,3744.5,3744.4,9.18495192]
[1753531262967,1e-08,3744.5,3744.4,8.70675192]
[1753531263152,1e-08,3744.5,3744.4,7.89465192]
[1753531263351,1e-08,3744.5,3744.4,8.37285192]
[1753531264579,1e-08,3744.5,3744.4,8.84465192]
[1753531266586,1e-08,3744.5,3744.4,8.37285192]
[1753531268152,1e-08,3744.5,3744.4,5.91585192]
[1753531268487,1e-08,3744.5,3744.4,8.37185192]
[1753531268959,1e-08,3744.5,3744.4,5.91585192]
[1753531269157,1e-08,3744.5,3744.4,8.37185192]
[1753531270993,1e-08,3744.5,3744.4,7.89365192]
[1753531271506,1e-08,3744.5,3744.4,8.37185192]
[1753531272375,1e-08,3744.5,3744.4,7.76005192]
[1753531273104,1e-08,3744.5,3744.4,8.23825192]
[1753531276770,1e-08,3744.5,3744.4,8.70905192]
[1753531276990,1e-08,3744.5,3744.4,10.58133556]
[1753531281373,1e-08,3745.2,3744.7,2.6704087]
[1753531281570,1e-08,3745.2,3745.1,6.49605567]
[1753531281790,1e-08,3745.2,3745.1,8.12415567]
[1753531282193,1e-08,3745.2,3745.1,8.59005567]
[1753531283272,1e-08,3745.2,3745.1,2.67015567]
[1753531283608,0.89980001,3745.2,3745.1,2.67015567]
[1753531285829,0.7537,3745.1,3744.4,0.001]
[1753531286001,1.6535,3745.1,3744.4,0.001]
[1753531286198,1.3037,3744.9,3744.4,0.001]
[1753531286426,0.7537,3744.8,3744.4,0.001]
[1753531286731,0.8998,3744.8,3744.5,2.67052702]
[1753531286914,0.8998,3744.8,3744.4,0.001]
[1753531286915,1.6535,3744.7,3744.4,0.001]